Workbook

Sheet UM Riders
A1: UM MONTHLY RIDERSHIP
A3: Fiscal Year | B3: JUL | C3: AUG | D3: SEP | E3: OCT | F3: NOV | G3: DEC | H3: JAN | I3: FEB | J3: MAR | K3: APR | L3: MAY | M3: JUN | N3: UM | O3: TOTAL RIDES | P3: % UM
A4: 1991 | D4: 5505 | E4: 19649 | F4: 19201 | G4: 10649 | H4: 28689 | I4: 22261 | J4: 17162 | K4: 15777 | L4: 13288 | M4: 7603 | N4: =SUM(B4:M4) -> 159784 | O4: =[1]FYMonth!N18 -> 583519 | P4: =N4/O4 -> 0.2738282729
A5: 1992 | B5: 2617 | C5: 2396 | D5: 4078 | E5: 20230 | F5: 23490 | G5: 13263 | H5: 24644 | I5: 22044 | J5: 15518 | K5: 17034 | L5: 13413 | M5: 5148 | N5: 163875 | O5: =[1]FYMonth!N19 -> 577168 | P5: 0.2839294625
A6: 1993 | B6: 2934 | C6: 2743 | D6: 13147 | E6: 14163 | F6: 14229 | G6: 15298 | H6: 15084 | I6: 20005 | J6: 17071 | K6: 15211 | L6: 8364 | M6: 6058 | N6: 144307 | O6: =[1]FYMonth!N20 -> 477774 | P6: 0.3020402952
A7: 1994 | B7: 4950 | C7: 8463 | D7: 15069 | E7: 14382 | F7: 16757 | G7: 14288 | H7: 13086 | I7: 17750 | J7: 14849 | K7: 14746 | L7: 8136 | M7: 5648 | N7: 148124 | O7: =[1]FYMonth!N21 -> 499317 | P7: 0.2966532283
A8: 1995 | B8: 4912 | C8: 8414 | D8: 14861 | E8: 15721 | F8: 16936 | G8: 12970 | H8: 16590 | I8: 18474 | J8: 17739 | K8: 15181 | L8: 9444 | M8: 6015 | N8: 157257 | O8: =[1]FYMonth!N22 -> 549297 | P8: 0.286287746
A9: 1996 | B9: 4303 | C9: 5444 | D9: 15616 | E9: 16926 | F9: 17421 | G9: 14250 | H9: 13542 | I9: 28773 | J9: 24606 | K9: 16816 | L9: 13205 | M9: 7610 | N9: 178512 | O9: =[1]FYMonth!N23 -> 558161 | P9: 0.3198217002
A10: 1997 | B10: 6540 | C10: 6521 | D10: 18095 | E10: 21544 | F10: 19521 | G10: 19225 | H10: 16134 | I10: 24789 | J10: 20688 | K10: 18858 | L10: 10674 | M10: 7550 | N10: 190139 | O10: =[1]FYMonth!N24 -> 615273 | P10: 0.3090319257
A11: 1998 | B11: 6831 | C11: 6072 | D11: 19751 | E11: 21658 | F11: 18056 | G11: 16158 | H11: 15531 | I11: 22504 | J11: 19128 | K11: 16422 | L11: 9728 | M11: 8204 | N11: 180043 | O11: =[1]FYMonth!N25 -> 651489 | P11: 0.2763561626
A12: 1999 | B12: 5704 | C12: 6417 | D12: 18760 | E12: 17925 | F12: 15773 | G12: 15155 | H12: 12222 | I12: 20461 | J12: 18338 | K12: 13845 | L12: 11399 | M12: 6575 | N12: 162574 | O12: =[1]FYMonth!N26 -> 678393 | P12: 0.2396457511
A13: 2000 | B13: 5090 | C13: 6818 | D13: 16250 | E13: 16775 | F13: 14695 | G13: 13006 | H13: 12297 | I13: 18853 | J13: 16050 | K13: 14357 | L13: 6899 | M13: 6434 | N13: 147524 | O13: =[1]FYMonth!N27 -> 693349 | P13: 0.2127701922
A14: 2001 | B14: 4998 | C14: 2721 | D14: 17923 | E14: 21102 | F14: 17707 | G14: 17859 | H14: 12758 | I14: 23081 | J14: 19229 | K14: 18325 | L14: 10347 | M14: 6192 | N14: 172242 | O14: =[1]FYMonth!N28 -> 700135 | P14: 0.2460125547
A15: 2002 | B15: 6800 | C15: 6235 | D15: 17335 | E15: 23608 | F15: 19004 | G15: 18125 | H15: 14909 | I15: 23171 | J15: 21321 | K15: 19082 | L15: 10983 | M15: 7624 | N15: 188197 | O15: =[1]FYMonth!N29 -> 710007 | P15: 0.2650635839
A16: 2003 | B16: 7146 | C16: 6983 | D16: 16826 | E16: 20152 | F16: 16143 | G16: 14677 | H16: 13620 | I16: 20732 | J16: 18526 | K16: 14704 | L16: 10077 | M16: 6812 | N16: 166398 | O16: =[1]FYMonth!N30 -> 661221 | P16: 0.2516526245
A17: 2004 | B17: 6226 | C17: 5518 | D17: 14990 | E17: 18997 | F17: 17518 | G17: 15667 | H17: 14185 | I17: 19381 | J17: 18988 | K17: 12491 | L17: 10388 | M17: 7857 | N17: 162206 | O17: =[1]FYMonth!N31 -> 678281 | P17: 0.2391427742
A18: 2005 | B18: 8223 | C18: 8913 | D18: 18115 | E18: 17628 | F18: 15813 | G18: 13354 | H18: 13845 | I18: 17858 | J18: 17251 | K18: 12414 | L18: 11163 | M18: 8744 | N18: 163321 | O18: =[1]FYMonth!$N$32 -> 644463 | P18: 0.2534218411
A19: 2006 | B19: 8126 | C19: 10423 | D19: 20395 | E19: 20345 | F19: 19715 | G19: 17391 | H19: 16119 | I19: 21753 | J19: 21352 | K19: 13921 | L19: 13390 | M19: 9952 | N19: 192882 | O19: =[1]FYMonth!$N$33 -> 695229 | P19: 0.2774366432
A20: 2007 | B20: 8533 | C20: 13079 | D20: 21678 | E20: 22723 | F20: 22242 | G20: 15725 | H20: 19696 | I20: 22022 | J20: 19735 | K20: 14608 | L20: 13629 | M20: 8141 | N20: 201811 | O20: =[1]FYMonth!$N$34 -> 735243 | P20: 0.274482042
A21: 2008 | B21: 10268 | C21: 14250 | D21: 17928 | E21: 22704 | F21: 21436 | G21: 15170 | H21: 22681 | I21: 27315 | J21: 21889 | K21: 17461 | L21: 14512 | M21: 10227 | N21: 215841 | O21: =[1]FYMonth!$N$35 -> 796520 | P21: 0.2709800131
A22: 2009 | B22: 12578 | C22: 15612 | D22: 25302 | E22: 26920 | F22: 19822 | G22: 16010 | H22: 21468 | I22: 27870 | N22: 165582 | O22: =[1]FYMonth!$N$36 -> 296461 | P22: 0.5585287778
A23: AVG.* | B23: =AVERAGE(B4:B22) -> 6487.722222 | C23: 7612.333333 | D23: 16401.26316 | E23: 19639.57895 | F23: 18183.10526 | G23: 15170.52632 | H23: =AVERAGE(H4:H22) -> 16689.47368 | I23: =AVERAGE(I4:I22) -> 22057.73684 | J23: =AVERAGE(J4:J21) -> 18857.77778 | K23: =AVERAGE(K4:K21) -> 15625.16667 | L23: =AVERAGE(L4:L21) -> 11057.72222 | M23: =AVERAGE(M4:M21) -> 7355.222222 | N23: =AVERAGE(N4:N20) -> 169364.4706 | O23: =AVERAGE(O4:O20) -> 629901.1176 | P23: 0.2688746945
A25: * = 1991 - 2009 most recent month | H25: = Highest month/year
A27: Total UM Passengers (through most recent month) | N27: =SUM(N4:N20) -> 2879196

Sheet Riders by Route
A1: UM Riders by Route
B3: 1 | C3: 2 | D3: 3 | E3: 4 | F3: 5 | G3: 6 | H3: 7 | I3: 8 | J3: 9 | K3: 10 | L3: 11 | M3: 12 | N3: 99* | O3: Total
A4: 2008-12-01 | B4: =3538-32+1274 -> 4780 | C4: =1736+64 -> 1800 | D4: =353+29 -> 382 | E4: =340+9 -> 349 | F4: =663+41 -> 704 | G4: =869+180+9 -> 1058 | H4: =694+10 -> 704 | I4: =1605+73 -> 1678 | J4: =664+53 -> 717 | K4: =256+13 -> 269 | L4: =16+362 -> 378 | M4: =1722+1438 -> 3160 | N4: =3+28 -> 31 | O4: =SUM(B4:N4) -> 16010
A5: 2009-01-01 | B5: =4338+1962-40 -> 6260 | C5: =2091+55 -> 2146 | D5: =518+64 -> 582 | E5: =401+9 -> 410 | F5: =909+76 -> 985 | G5: =1164+218+7 -> 1389 | H5: =824+13 -> 837 | I5: =2100+133 -> 2233 | J5: =798+51 -> 849 | K5: =338+14 -> 352 | L5: =383+16 -> 399 | M5: =2130+2843 -> 4973 | N5: =51+2 -> 53 | O5: =SUM(B5:N5) -> 21468
A6: 2009-02-01 | B6: =2535+6379 -> 8914 | C6: =66+2399 -> 2465 | D6: =102+828 -> 930 | E6: =8+496 -> 504 | F6: =96+1271 -> 1367 | G6: =15+230+1221 -> 1466 | H6: =20+889 -> 909 | I6: =121+2978 -> 3099 | J6: =96+1138 -> 1234 | K6: =12+396 -> 408 | L6: =11+422 -> 433 | M6: =3416+2648 -> 6064 | N6: =57+20 -> 77 | O6: =SUM(B6:N6) -> 27870
A22: Route 99 includes passengers who ride a bus traveling to or from the bus barn.
